Cogmind - Beta 15 @@@ ROGUE MODE // 2025.08.07 @ 15:18:13 Player: Zoe Result: Destroyed by G-47 Trooper with Particle Gun Performance ------------- Evolutions (1) 500 Regions Visited (2) 400 Robots Destroyed (16) 80 Value Destroyed (404) 404 Prototype IDs (0) 0 Alien Tech Used (0) 0 Bonus (0) 0 TOTAL SCORE: 1384 Bonus ------- None Cogmind --------- Core Integrity 0/400 Matter 112/300 Energy 7/100 System Corruption 14% Temperature Cool (48) Movement Walking (120) Location -9/Materials Parts ------- > --- POWER (1) -------- (None) > --- PROPULSION (3) --- Aluminum Leg Aluminum Leg > --- UTILITY (3) ------ Medium Storage Unit Shield Generator > --- WEAPON (2) ------- Heavy Assault Rifle > --- INVENTORY (10) --- Hacking Suite Rocket Launcher Rocket Launcher Datajack Peak State ------------ > --- POWER ------------ Light Ion Engine > --- PROPULSION ------- Light Treads Light Treads > --- UTILITY ---------- Small Storage Unit Structural Scanner Improved Terrain Scanner > --- WEAPON ----------- Grenade Launcher Mining Claw > --- INVENTORY -------- Aluminum Leg Medium Storage Unit Hacking Suite Particle Gun Assault Rifle Light Assault Rifle Datajack [Rating: 11] Favorites ----------- Power Light Ion Engine Engine Light Ion Engine Propulsion Light Treads Treads Light Treads Leg Aluminum Leg Utility Small Storage Unit Device Structural Scanner Storage Small Storage Unit Weapon Assault Rifle Energy Gun Particle Gun Ballistic Gun Assault Rifle Launcher Grenade Launcher Special Weapon Mining Laser Slashing Weapon Mining Claw Special Melee Weapon Datajack Build | -11 -10 -9 ------- Run | Yrd Mat Mat Slots Evolved 2 | . . 2 Power . | . . . Propulsion 1 | . . 1 Utility 1 | . . 1 Weapon . | . . . Parts Attached 21 | 7 6 8 Power 2 | 1 1 . Engine 2 | 1 1 . Core . | . . . Reactor . | . . . Propulsion 4 | 2 . 2 Treads 2 | 2 . . Leg 2 | . . 2 Wheel . | . . . Hover . | . . . Flight . | . . . Utility 7 | 2 2 3 Device 5 | 1 2 2 Storage 2 | 1 . 1 Processor . | . . . Hackware . | . . . Protection . | . . . Artifact . | . . . Weapon 8 | 2 3 3 Energy Gun 1 | . . 1 Energy Cannon . | . . . Ballistic Gun 3 | 2 . 1 Ballistic Cannon . | . . . Launcher 1 | . . 1 Special Weapon 1 | . 1 . Impact Weapon . | . . . Slashing Weapon 1 | . 1 . Piercing Weapon . | . . . Special Melee Weapon 1 | . 1 . Unidentified Prototypes . | . . . Parts Lost 11 | . 1 10 Power 1 | . . 1 Propulsion 2 | . . 2 Utility 4 | . 1 3 Weapon 4 | . . 4 Highest Loss Streak 8 | . 1 8 To Critical Strikes . | . . . Average Backups 6 | 4 7 4 Power . | 1 . . Propulsion 1 | 2 1 . Utility 1 | . 2 1 Weapon 1 | 1 2 2 Tool/Special . | . . . Unused Backups 5 | . 2 3 Power . | . . . Propulsion 1 | . 1 . Utility 1 | . . 1 Weapon 3 | . 1 2 Tool/Special . | . . . Average Slot Usage (%) 87 | . 98 72 Engine 10 | . 14 6 Treads 20 | . 28 11 Leg 3 | . . 8 Device 13 | . 12 15 Storage 12 | . 14 11 Ballistic Gun 14 | . 18 9 Launcher 1 | . . 3 Special Weapon 4 | . 8 . Slashing Weapon 2 | . . 5 Peak Build Rating 11 | 9 10 11 Average Rating 7 | 5 7 8 On Entrance 5 | . 9 8 Naked Turns . | . . . Heaviest Build 20 | 12 13 20 Greatest Support 40 | 40 40 40 Greatest Overweight (x) 3 | 2 . 3 Average Overweight (x) . | . . . Largest Inventory Capacity 10 | 8 8 10 Average Capacity 8 | 7 8 9 Most Carried 8 | 8 8 7 Average Carried 6 | 4 7 4 Final Capacity 10 | 8 8 10 Final Carried 7 | 6 7 4 Class Distribution -------------------- 100% | Mutant Dominant Class ---------------- Mutant | -10/Materials Mutant | -9/Materials Resources | -11 -10 -9 ----------- Run | Yrd Mat Mat Matter Collected 551 | 314 145 92 Remotely . | . . . Salvage Created 404 | 109 189 106 Parts 29 | 10 7 12 Haulers Intercepted . | . . . Recyclers Shooed 1 | 1 . . Parts Field Recycled . | . . . Retrieved Matter . | . . . Parts Self-Destructed . | . . . Prevented . | . . . Kills | -11 -10 -9 ------- Run | Yrd Mat Mat Combat Hostiles Destroyed 9 | . 4 5 Guns 5 | . 4 1 AOE 3 | . . 3 Classes Destroyed 7 | 2 2 3 Builder 1 | . . 1 Tunneler 3 | 3 . . Recycler 1 | 1 . . Operator 2 | . 1 1 Swarmer 1 | . . 1 Grunt 6 | . 4 2 Sentry 2 | . . 2 Best Kill Streak 5 | 4 3 5 Combat Bots Only 4 | . 3 4 Max Kills in Single Turn 3 | 1 1 3 Gunslinging . | . . . Exploded 2 | . . 2 Melee . | . . . Uniques/NPCs Destroyed . | . . . Combat | -11 -10 -9 -------- Run | Yrd Mat Mat Hostile Shots Fired 125 | . 38 87 Missed 38 | . 12 26 Hits 87 | . 26 61 Projectile 87 | . 26 61 Critical Strikes 2 | . . 2 Damage Taken 1734 | . 332 1402 Core 514 | . 110 404 Absorbed by Shields 32 | . . 32 Core Remaining (%) 78 | 100 56 . Volleys Fired 79 | 11 32 36 Largest 2 | 2 2 2 Hottest 100 | 40 100 85 Shots Fired 111 | 22 49 40 Gun 91 | 22 34 35 Cannon . | . . . Launcher 5 | . . 5 Special 15 | . 15 . Kinetic 89 | 22 34 33 Thermal 17 | . 15 2 Explosive 5 | . . 5 Electromagnetic . | . . . Robot Hit Streak 12 | 11 12 7 Robot Miss Streak 3 | 1 2 3 Penetration Max . | . . . Secondary Targets . | . . . Shots Hit Robots 73 | 18 25 30 Core Hits 32 | 7 12 13 Critical Kills . | . . . Critical Parts Destroyed . | . . . Critical Strikes . | . . . Melee Attacks 19 | . 5 14 Impact . | . . . Slashing 17 | . 3 14 Piercing . | . . . Sneak Attacks 3 | . 2 1 Combat Hostiles . | . . . Follow-up Attacks . | . . . Damage Inflicted 1128 | 172 232 724 Guns 739 | 172 232 335 Cannons . | . . . Explosions 301 | . . 301 Melee 88 | . . 88 Ramming . | . . . Kinetic 706 | 172 232 302 Thermal 33 | . . 33 Explosive 301 | . . 301 Electromagnetic . | . . . Impact . | . . . Slashing 88 | . . 88 Piercing . | . . . Highest Corruption 14 | . . 14 Average Corruption 12 | . . 12 Corruption Purged . | . . . Corruption Blocked . | . . . Effects 9 | . . 9 Message Errors 1 | . . 1 Matter Fused 2 | . . 2 Heat Flow Errors 3 | . . 3 Energy Discharges 1 | . . 1 Parts Rejected 1 | . . 1 Weapon Failures 1 | . . 1 Overload Shots . | . . . Overflow Damage 57 | . . 57 Projectiles . | . . . Explosions 1 | . . 1 Melee 56 | . . 56 Knockbacks . | . . . Impact . | . . . Kinetic . | . . . Secondary . | . . . Self-Inflicted Damage 100 | . . 100 Shots 3 | . . 3 Rammed . | . . . Targets Rammed . | . . . Kicked . | . . . Crushed . | . . . Highest Temperature 257 | . 91 257 Average Temperature 37 | . 22 78 Received Heat Transfer 486 | . 186 300 Siege Activations . | . . . Martial Activations . | . . . Shielding Activations . | . . . Robots Disrupted . | . . . Combat Hostiles . | . . . Robots Corrupted . | . . . Combat Hostiles . | . . . Parts Fried . | . . . Impact Corruptions . | . . . Robots Melted . | . . . Combat Hostiles . | . . . Parts Melted . | . . . Heat Transferred 74 | . . 74 Parts Sabotaged . | . . . Parts Stolen . | . . . Parts Stripped . | . . . Power Chain Reactions . | . . . Alert | -11 -10 -9 ------- Run | Yrd Mat Mat Maximum Alert Level . | . . . Low Security (%) 100 | 100 100 100 Level 1 . | . . . Level 2 . | . . . Level 3 . | . . . Level 4 . | . . . Level 5 . | . . . High Security . | . . . Max Security . | . . . Peak Influence 100 | 10 77 100 Initial 11 | . . 11 Average 17 | 1 15 27 Influence Increases 329 | 20 131 178 Destroy 0b10 Robot/C 180 | . 80 100 Destroy 0b10 Robot/NC 35 | 20 5 10 Destroy Leader 50 | . 20 30 Successful Hack 5 | . . 5 Disable Machine 15 | . . 15 Destroy Structure 29 | . 11 18 Lose Combat Pursuer 15 | . 15 . Influence Decreases 329 | 20 102 207 Entered New Map 18 | . . 18 Time Decay 230 | 20 92 118 Lost Part 81 | . 10 71 Squads Dispatched 3 | . 1 2 Investigation 1 | . 1 . Extermination . | . . . Reinforcement 2 | . . 2 Assault . | . . . Garrison . | . . . Intercept . | . . . Searches Triggered . | . . . Construction Impeded 1 | . . 1 Haulers Reinforced . | . . . Active Scanning Responses . | . . . Cargo Convoy Interrupts . | . . . Stealth | -11 -10 -9 --------- Run | Yrd Mat Mat Distress Signals 1 | . 1 . Communications Jammed . | . . . Distress Signals . | . . . Times Spotted 25 | . 12 13 Peak Tracking Total 9 | . 4 9 Tactical Retreats 1 | . 1 . Traps | -11 -10 -9 ------- Run | Yrd Mat Mat Traps Triggered . | . . . Indirectly . | . . . Trap Hack Attempts . | . . . Triggered . | . . . Disarmed . | . . . Reprogrammed . | . . . Reused . | . . . Traps Extracted . | . . . Installed . | . . . Triggered . | . . . Machines | -11 -10 -9 ---------- Run | Yrd Mat Mat Machines Disabled 1 | . . 1 Max in Single Turn 1 | . . 1 Machines Repaired . | . . . Machines Dismantled . | . . . Machines Sabotaged . | . . . Overloaded Fab Kills . | . . . Hacking | -11 -10 -9 --------- Run | Yrd Mat Mat Machines Accessed 3 | . 1 2 Terminals 3 | . 1 2 Fabricators . | . . . Repair Stations . | . . . Recycling Units . | . . . Scanalyzers . | . . . Garrison Access . | . . . Total Hacks 9 | . 4 5 Successful 3 | . 1 2 Failed 6 | . 3 3 Catastrophic 1 | . . 1 Database Lockouts . | . . . Manual 7 | . 2 5 Terminals 9 | . 4 5 Fabricators . | . . . Repair Stations . | . . . Recycling Units . | . . . Scanalyzers . | . . . Garrison Access . | . . . Terminal Hacks . | . . . Fabricator Hacks . | . . . Repair Station Hacks . | . . . Recycling Unit Hacks . | . . . Scanalyzer . | . . . Garrison Access Hacks . | . . . Unauthorized Hacks 3 | . 1 2 Terminals 3 | . 1 2 Track 1 | . . 1 Botnet 2 | . 1 1 Fabricators . | . . . Repair Stations . | . . . Recycling Units . | . . . Scanalyzers . | . . . Garrison Access . | . . . Data Cores Recovered . | . . . Used . | . . . Hacking Detections 2 | . 1 1 Full Trace Events 2 | . 1 1 Feedback Events . | . . . Feedback Blocked . | . . . Robot Schematics Acquired . | . . . Robots Built . | . . . Authchips . | . . . Time . | . . . Total Robot Build Rating . | . . . Part Schematics Acquired . | . . . Parts Built . | . . . Authchips . | . . . Time . | . . . Total Part Build Rating . | . . . Parts Repaired . | . . . Time . | . . . Parts Recycled . | . . . Recycled Matter . | . . . Retrieved Matter . | . . . Retrieved Components . | . . . Parts Scanalyzed . | . . . Part Schematics Acquired . | . . . Parts Damaged . | . . . Bothacking | -11 -10 -9 ------------ Run | Yrd Mat Mat Used RIF Installer . | . . . Robots Hacked 1 | . 1 . Non-combat 1 | . 1 . Combat . | . . . Robot Hacks Applied 2 | . 2 . no_distress 1 | . 1 . check_alert 1 | . 1 . Relay Couplers Released . | . . . Fabnet Peak Effective % . | . . . Robots Rewired . | . . . Allies Hacked . | . . . Hacks Repelled . | . . . Allies | -11 -10 -9 -------- Run | Yrd Mat Mat Total Allies . | . . . Largest Group . | . . . Highest-Rated Group . | . . . Highest-Rated Ally . | . . . Total Orders . | . . . Ally Attacks . | . . . Total Damage . | . . . Kills . | . . . Allies Corrupted . | . . . Allies Melted . | . . . Intel | -11 -10 -9 ------- Run | Yrd Mat Mat Active Infowar (turns) 723 | 48 455 220 Terrain 261 | 48 33 180 Structural 327 | . 107 220 Seismic 315 | . 315 . Robot Analysis Total . | . . . Derelict Logs Recovered . | . . . Drone Launches . | . . . Drone Recoveries . | . . . Exploration | -11 -10 -9 ------------- Run | Yrd Mat Mat Turns Passed 1073 | 156 522 395 Spaces Moved 402 | 77 160 165 Core 24 | 23 . 1 Treads 315 | 54 160 101 Legs 63 | . . 63 Wheels . | . . . Hover . | . . . Flight . | . . . Fastest Speed 50 | 50 160 120 Average Speed 149 | 138 160 144 Slowest Speed 200 | 160 160 200 Overloaded Moves . | . . . Propulsion Burnouts . | . . . Robots Hopped . | . . . Potential Cave-ins 12 | . 3 9 Cave-ins Triggered 2 | . . 2 Exploration Rate (%) 19 | 6 32 19 Regions Visited 2 Branch Regions . Pre-discovered Areas . | . . . Known Exits Taken . | . . . Unknown Exits Taken 2 | 1 1 . Scrap Searched . | . . . Spaces Dug 52 | . 15 37 Terrain Destroyed 59 | . 15 44 Melee 11 | . . 11 Projectile 15 | . 15 . AOE 33 | . . 33 Terrain Rammed . | . . . Walls Destroyed . | . . . Machines Disabled . | . . . Actions | -11 -10 -9 --------- Run | Yrd Mat Mat Total 700 | 106 340 254 Wait 138 | . 119 19 Move 399 | 76 159 164 Hop . | . . . Pick Up 25 | 12 6 7 Fast Attach 1 | 1 . . Attach 16 | 6 1 9 Detach . | . . . Swap 17 | . 14 3 Drop 5 | . 4 1 Fire 79 | 11 32 36 Melee 19 | . 5 14 Ram . | . . . Kick . | . . . Crush . | . . . Escape Stasis 1 | . . 1 Rewire . | . . . Trap . | . . . Miscellaneous . | . . . Route ------- -11/Scrapyard -10/Materials -9/Materials History --------- Turn | Location | Event 20 | -11/Scrapyard | Discovered new exit (range 15) 157 | -11/Scrapyard | Entered Materials 314 | -10/Materials | Build established: Mutant 529 | -10/Materials | Discovered new exit (range 8) 679 | -10/Materials | Entered another Materials area 679 | -9/Materials | Evolved 2 slots: Propulsion x1, Utility x1 875 | -9/Materials | Crushed by falling debris 879 | -9/Materials | Core integrity fell below 50% 899 | -9/Materials | Crushed by falling debris 900 | -9/Materials | System corruption reached 10% 926 | -9/Materials | Core integrity fell below 20% 956 | -9/Materials | Lost 8 parts (1p2n2u3w) 1074 | -9/Materials | Destroyed by G-47 Trooper with Particle Gun Last Messages --------------- 00955_ R-06 Scavenger collects Welding Torch. 00958_ System corrupted: Matter fused (-5). 00958_ K-01 Serf collects debris. 00958_ Acquired 23 matter. 00967_ K-01 Serf collects debris. 00977_ 5 2ON/S6DUBN4WVB44AXFTG|M|VWJX 01001_ System corrupted: Heat flow error (+278). 01007_ Acquired Rocket Launcher. 01012_ Acquired Shield Generator. 01031_ C-30 ARC bursts open, deploying its payload. 01031_ G-47 Trooper unfolds itself. 01031_ G-34 Mercenary unfolds itself. 01035_ System corrupted: Matter fused (-6). 01036_ Critical hit (Burn: +37). 01042_ Assault Rifle destroyed. 01048_ Heat Sink destroyed. 01050_ System corrupted: Energy discharge (-26). 01064_ Destroyed Lgt. Nuclear Core. 01069_ System corrupted: Heat flow error (+112). Map ----- +----------------------------------------------------+ | ??????????????? ==# #####??#???????? | | ??????????????]]==# ###########????? | | ?????????### # ## #????? | | ??????????### #####+##+###### """ #????? | | ??????????### ##### + """ #????? | | ?????????#?## ???## ###### """ #???? | | ????????????#????## ##+###### +???? | | ????????????# #??## # T ## """ #???? | | ???????? ?? # ##### # ! ## """ #??? | | ??????????? # ##### # ## """ #??? # | | ??????????? + + ##| #? # | | ??????????? # # ####+###+##?? # | | ???????#?? # !! # #### ### ### # | | ??????????? + ] ########### ### ### # | | ??????????? # !]! #### ##! | | ???????#+#### ####### | | ??? // # ######! | | ??? / + = #??###! ######+###### | | ?????? # ##??##! ## ##### | | ?????? ###/####### #?#####! ## !!# ??? | | ?????? ### % ## ###########"" !!# ??? | | ?????????# #[ ### ##"T # ??? | | ?????????# """ # ### # #"" # ??? | | ?????????# """ + ### # # ##??? | | ?????????# """ # r ### ####+#######??? | | ?????????# # @ #### # #####? ? | | ?????????######?###g########## #####??? | | ????????????????###g## + | | ??????????????????#%## "T # ### #### | | ??????????????????#"## # ### ##?? | | ??????????????????# #################?????? | | ??????????????????# #????######### ?? ??? | | ??????????????????# ????????????????? ???? | | ??????????????????+ ?????????? ??????????? | | ??????????????????# ?????????????????????? | | ??????????????????? ?????????????????? ??? | | ??????????????????? ?????????????????????? | | ??????????????????? ??????????????"??????? | | ??????????????????? ?????????????????????? | | ??????????????????? ?????????????????????? | | ??????????????????? ?????????????????????? | | ??????????????????? T?????????????????????? | | ??????????????????????????????????????????? | | ??????????????????????????????????????????? | | ??????????????????????????????????????????? | | ??????????????????????????????????????????? | | ??????????????????????????????????????????? | | ??????????????????????????????????????????? | | ??????????????????????????????????????????? | | ??????????????????????????????????????????? | +----------------------------------------------------+ Best States ------------- Heat Dissipation 38 Energy Generation 10 Energy Capacity 125 Matter Stores 300 Matter Capacity 300 Sight Range 16 Terrain Scan Range 16 Terrain Scan Density 10 Evasion (%) 55 Recoil Reduction 2 Item Schematics ----------------- None Robot Schematics ------------------ None Fabricated ------------ Nothing Repaired ---------- Nothing Alien Tech Used ----------------- None Achievements -------------- None Challenges ------------ None Game ------ Seed SurgeImpactAnalyzer Manual? 0 Play Time 00:17:33 Cumulative 30.7 hours Start 2025.08.07 @ 14:52:15 End 2025.08.07 @ 15:18:13 Sessions 1 Manual Loads 0 Difficulty Rogue Special Mode None Game No. 60 Rogue 57 Adventurer 3 Explorer 0 Win Type - Total 0 Types 0/0/0/0/0/0/0/0/0/0 Lore% 26 Gallery% 23 Achievement% 25 Wizard Run 0 Options --------- Layout 1 ASCII 0 Keyboard 0 Movement Mouse Keybinds 0 Fullscreen 1 Font 24/Smallcaps Map View 50x35 Zoom Use 0% Tactical HUD 1 Map Filters NONE Filters NONE Steam 1 RUN: 4a63087a-c68c-4050-8388-a4726af4f2f9